{"text_format":"3","workbook":"xlsx","n_sheets":3,"sheets":["Datos de clientes potenciales","Ventas previstas ","Previsión ponderada mensual"],"not_rendered":{"charts":1,"images":2,"defined_names":9},"read":"whole","date_system":"1900"}

{"sheet":"Datos de clientes potenciales","index":0,"n_rows":10,"n_cols":10,"rows_kept":10,"merged":[[2,1,2,2],[3,4,3,8]]}
[]
[]
[null,"Seguimiento detallado de clientes potenciales"]
[null,{"$f":"TODAY()","v":"2022-06-20"}]
[null,"Nombre de la compañía\t\t\t\t\t\t\t\t\t\t",{"$nulls":7},"CONFIDENCIAL"]
[null,"Nombre del cliente potencial","Contacto del cliente potencial","Origen del \nOrigen","Origen del \nRegión","Origen del \ncliente","Oportunidad potencial","Oportunidad \nde venta","Cierre de \nla previsión","Previsión \nponderada"]
[null,"Adatum Corporation",null,"Sitio web","Norte","Estratégico",{"v":300000,"d":"300,000.00 €"},{"v":0.9,"d":"90%"},"Enero",{"$f":"IFERROR(IF(DatosClientesPotenciales[[#This Row],[Oportunidad \nde venta]]<>\"\",DatosClientesPotenciales[[#This Row],[Oportunidad \nde venta]]*DatosClientesPotenciales[[#This Row],[Oportunidad potencial]],\"\"),\"\")","v":{"v":270000,"d":"270,000.00 €"}}]
[null,"Adventure Works",null,"Eventos de redes","Sur","Estratégico",{"v":200000,"d":"200,000.00 €"},{"v":0.1,"d":"10%"},"Febrero",{"$f":"IFERROR(IF(DatosClientesPotenciales[[#This Row],[Oportunidad \nde venta]]<>\"\",DatosClientesPotenciales[[#This Row],[Oportunidad \nde venta]]*DatosClientesPotenciales[[#This Row],[Oportunidad potencial]],\"\"),\"\")","v":{"v":20000,"d":"20,000.00 €"}}]
[null,"Alpine Ski House",null,"Eventos de redes","Norte","Táctico",{"v":100000,"d":"100,000.00 €"},{"v":0.2,"d":"20%"},"Marzo",{"$f":"IFERROR(IF(DatosClientesPotenciales[[#This Row],[Oportunidad \nde venta]]<>\"\",DatosClientesPotenciales[[#This Row],[Oportunidad \nde venta]]*DatosClientesPotenciales[[#This Row],[Oportunidad potencial]],\"\"),\"\")","v":{"v":20000,"d":"20,000.00 €"}}]
[null,"Total",{"$nulls":4},{"$f":"SUBTOTAL(109,DatosClientesPotenciales[Oportunidad potencial])","v":{"v":600000,"d":"600,000.00 €"}},null,null,{"$f":"SUBTOTAL(109,DatosClientesPotenciales[Previsión \nponderada])","v":{"v":310000,"d":"310,000.00 €"}}]

{"sheet":"Ventas previstas ","index":1,"n_rows":15,"n_cols":14,"rows_kept":15,"merged":[[0,5,0,9],[2,1,2,2],[4,12,4,13]]}
[]
[]
[null,"Ventas previstas"]
[null,{"$f":"FechaSeguimiento","v":"2022-06-20"}]
[null,{"$f":"'Datos de clientes potenciales'!B5:I5","v":"Nombre de la compañía\t\t\t\t\t\t\t\t\t\t"},{"$nulls":10},"CONFIDENCIAL"]
[null,"Nombre del cliente potencial","Enero \nPrevisión","Febrero \nPrevisión","Marzo \nPrevisión","Abril \nPrevisión","Mayo \nPrevisión","Junio \nPrevisión","Julio Previsión","Agosto \nPrevisión","Septiembre \nPrevisión","Octubre \nPrevisión","Noviembre \nPrevisión","Diciembre \nPrevisión"]
[null,{"$f":"IFERROR(IF(AND(DatosClientesPotenciales[[#This Row],[Nombre del cliente potencial]] <> \"\", ROW(VentasPrevistas[Nombre del cliente potencial])<>ÚltimaEntrada),DatosClientesPotenciales[Nombre del cliente potencial], \"\"),\"\")","v":"Adatum Corporation"},{"$f":"IFERROR(IF(DatosClientesPotenciales[[#This Row],[Cierre de \nla previsión]] <>\"\",IF(DatosClientesPotenciales[[#This Row],[Cierre de \nla previsión]]= \"Enero\",DatosClientesPotenciales[Previsión \nponderada],0),\"\"),\"\")","v":{"v":270000,"d":"270,000 €"}},{"$f":"IFERROR(IF(DatosClientesPotenciales[[#This Row],[Cierre de \nla previsión]] <>\"\",IF(DatosClientesPotenciales[[#This Row],[Cierre de \nla previsión]] = \"Febrero\",DatosClientesPotenciales[Previsión \nponderada],0),\"\"),\"\")","v":{"v":0,"d":"0 €"}},{"$f":"IFERROR(IF(DatosClientesPotenciales[[#This Row],[Cierre de \nla previsión]] <>\"\",IF(DatosClientesPotenciales[[#This Row],[Cierre de \nla previsión]] = \"Marzo\",DatosClientesPotenciales[Previsión \nponderada],0),\"\"),\"\")","v":{"v":0,"d":"0 €"}},{"$f":"IFERROR(IF(DatosClientesPotenciales[[#This Row],[Cierre de \nla previsión]] <>\"\",IF(DatosClientesPotenciales[[#This Row],[Cierre de \nla previsión]] = \"Abril\",DatosClientesPotenciales[Previsión \nponderada],0),\"\"),\"\")","v":{"v":0,"d":"0 €"}},{"$f":"IFERROR(IF(DatosClientesPotenciales[[#This Row],[Cierre de \nla previsión]] <>\"\",IF(DatosClientesPotenciales[[#This Row],[Cierre de \nla previsión]] = \"Mayo\",DatosClientesPotenciales[Previsión \nponderada],0),\"\"),\"\")","v":{"v":0,"d":"0 €"}},{"$f":"IFERROR(IF(DatosClientesPotenciales[[#This Row],[Cierre de \nla previsión]] <>\"\",IF(DatosClientesPotenciales[[#This Row],[Cierre de \nla previsión]] = \"Junio\",DatosClientesPotenciales[Previsión \nponderada],0),\"\"),\"\")","v":{"v":0,"d":"0 €"}},{"$f":"IFERROR(IF(DatosClientesPotenciales[[#This Row],[Cierre de \nla previsión]] <>\"\",IF(DatosClientesPotenciales[[#This Row],[Cierre de \nla previsión]] = \"Julio\",DatosClientesPotenciales[Previsión \nponderada],0),\"\"),\"\")","v":{"v":0,"d":"0 €"}},{"$f":"IFERROR(IF(DatosClientesPotenciales[[#This Row],[Cierre de \nla previsión]] <>\"\",IF(DatosClientesPotenciales[[#This Row],[Cierre de \nla previsión]] = \"Agosto\",DatosClientesPotenciales[Previsión \nponderada],0),\"\"),\"\")","v":{"v":0,"d":"0 €"}},{"$f":"IFERROR(IF(DatosClientesPotenciales[[#This Row],[Cierre de \nla previsión]] <>\"\",IF(DatosClientesPotenciales[[#This Row],[Cierre de \nla previsión]] = \"Septiembre\",DatosClientesPotenciales[Previsión \nponderada],0),\"\"),\"\")","v":{"v":0,"d":"0 €"}},{"$f":"IFERROR(IF(DatosClientesPotenciales[[#This Row],[Cierre de \nla previsión]] <>\"\",IF(DatosClientesPotenciales[[#This Row],[Cierre de \nla previsión]] = \"Octubre\",DatosClientesPotenciales[Previsión \nponderada],0),\"\"),\"\")","v":{"v":0,"d":"0 €"}},{"$f":"IFERROR(IF(DatosClientesPotenciales[[#This Row],[Cierre de \nla previsión]] <>\"\",IF(DatosClientesPotenciales[[#This Row],[Cierre de \nla previsión]] = \"Noviembre\",DatosClientesPotenciales[Previsión \nponderada],0),\"\"),\"\")","v":{"v":0,"d":"0 €"}},{"$f":"IFERROR(IF(DatosClientesPotenciales[[#This Row],[Cierre de \nla previsión]] <>\"\",IF(DatosClientesPotenciales[[#This Row],[Cierre de \nla previsión]] = \"Diciembre\",DatosClientesPotenciales[Previsión \nponderada],0),\"\"),\"\")","v":{"v":0,"d":"0 €"}}]
[null,{"$f":"IFERROR(IF(AND(DatosClientesPotenciales[[#This Row],[Nombre del cliente potencial]] <> \"\", ROW(VentasPrevistas[Nombre del cliente potencial])<>ÚltimaEntrada),DatosClientesPotenciales[Nombre del cliente potencial], \"\"),\"\")","v":"Adventure Works"},{"$f":"IFERROR(IF(DatosClientesPotenciales[[#This Row],[Cierre de \nla previsión]] <>\"\",IF(DatosClientesPotenciales[[#This Row],[Cierre de \nla previsión]]= \"Enero\",DatosClientesPotenciales[Previsión \nponderada],0),\"\"),\"\")","v":{"v":0,"d":"0 €"}},{"$f":"IFERROR(IF(DatosClientesPotenciales[[#This Row],[Cierre de \nla previsión]] <>\"\",IF(DatosClientesPotenciales[[#This Row],[Cierre de \nla previsión]] = \"Febrero\",DatosClientesPotenciales[Previsión \nponderada],0),\"\"),\"\")","v":{"v":20000,"d":"20,000 €"}},{"$f":"IFERROR(IF(DatosClientesPotenciales[[#This Row],[Cierre de \nla previsión]] <>\"\",IF(DatosClientesPotenciales[[#This Row],[Cierre de \nla previsión]] = \"Marzo\",DatosClientesPotenciales[Previsión \nponderada],0),\"\"),\"\")","v":{"v":0,"d":"0 €"}},{"$f":"IFERROR(IF(DatosClientesPotenciales[[#This Row],[Cierre de \nla previsión]] <>\"\",IF(DatosClientesPotenciales[[#This Row],[Cierre de \nla previsión]] = \"Abril\",DatosClientesPotenciales[Previsión \nponderada],0),\"\"),\"\")","v":{"v":0,"d":"0 €"}},{"$f":"IFERROR(IF(DatosClientesPotenciales[[#This Row],[Cierre de \nla previsión]] <>\"\",IF(DatosClientesPotenciales[[#This Row],[Cierre de \nla previsión]] = \"Mayo\",DatosClientesPotenciales[Previsión \nponderada],0),\"\"),\"\")","v":{"v":0,"d":"0 €"}},{"$f":"IFERROR(IF(DatosClientesPotenciales[[#This Row],[Cierre de \nla previsión]] <>\"\",IF(DatosClientesPotenciales[[#This Row],[Cierre de \nla previsión]] = \"Junio\",DatosClientesPotenciales[Previsión \nponderada],0),\"\"),\"\")","v":{"v":0,"d":"0 €"}},{"$f":"IFERROR(IF(DatosClientesPotenciales[[#This Row],[Cierre de \nla previsión]] <>\"\",IF(DatosClientesPotenciales[[#This Row],[Cierre de \nla previsión]] = \"Julio\",DatosClientesPotenciales[Previsión \nponderada],0),\"\"),\"\")","v":{"v":0,"d":"0 €"}},{"$f":"IFERROR(IF(DatosClientesPotenciales[[#This Row],[Cierre de \nla previsión]] <>\"\",IF(DatosClientesPotenciales[[#This Row],[Cierre de \nla previsión]] = \"Agosto\",DatosClientesPotenciales[Previsión \nponderada],0),\"\"),\"\")","v":{"v":0,"d":"0 €"}},{"$f":"IFERROR(IF(DatosClientesPotenciales[[#This Row],[Cierre de \nla previsión]] <>\"\",IF(DatosClientesPotenciales[[#This Row],[Cierre de \nla previsión]] = \"Septiembre\",DatosClientesPotenciales[Previsión \nponderada],0),\"\"),\"\")","v":{"v":0,"d":"0 €"}},{"$f":"IFERROR(IF(DatosClientesPotenciales[[#This Row],[Cierre de \nla previsión]] <>\"\",IF(DatosClientesPotenciales[[#This Row],[Cierre de \nla previsión]] = \"Octubre\",DatosClientesPotenciales[Previsión \nponderada],0),\"\"),\"\")","v":{"v":0,"d":"0 €"}},{"$f":"IFERROR(IF(DatosClientesPotenciales[[#This Row],[Cierre de \nla previsión]] <>\"\",IF(DatosClientesPotenciales[[#This Row],[Cierre de \nla previsión]] = \"Noviembre\",DatosClientesPotenciales[Previsión \nponderada],0),\"\"),\"\")","v":{"v":0,"d":"0 €"}},{"$f":"IFERROR(IF(DatosClientesPotenciales[[#This Row],[Cierre de \nla previsión]] <>\"\",IF(DatosClientesPotenciales[[#This Row],[Cierre de \nla previsión]] = \"Diciembre\",DatosClientesPotenciales[Previsión \nponderada],0),\"\"),\"\")","v":{"v":0,"d":"0 €"}}]
[null,{"$f":"IFERROR(IF(AND(DatosClientesPotenciales[[#This Row],[Nombre del cliente potencial]] <> \"\", ROW(VentasPrevistas[Nombre del cliente potencial])<>ÚltimaEntrada),DatosClientesPotenciales[Nombre del cliente potencial], \"\"),\"\")","v":"Alpine Ski House"},{"$f":"IFERROR(IF(DatosClientesPotenciales[[#This Row],[Cierre de \nla previsión]] <>\"\",IF(DatosClientesPotenciales[[#This Row],[Cierre de \nla previsión]]= \"Enero\",DatosClientesPotenciales[Previsión \nponderada],0),\"\"),\"\")","v":{"v":0,"d":"0 €"}},{"$f":"IFERROR(IF(DatosClientesPotenciales[[#This Row],[Cierre de \nla previsión]] <>\"\",IF(DatosClientesPotenciales[[#This Row],[Cierre de \nla previsión]] = \"Febrero\",DatosClientesPotenciales[Previsión \nponderada],0),\"\"),\"\")","v":{"v":0,"d":"0 €"}},{"$f":"IFERROR(IF(DatosClientesPotenciales[[#This Row],[Cierre de \nla previsión]] <>\"\",IF(DatosClientesPotenciales[[#This Row],[Cierre de \nla previsión]] = \"Marzo\",DatosClientesPotenciales[Previsión \nponderada],0),\"\"),\"\")","v":{"v":20000,"d":"20,000 €"}},{"$f":"IFERROR(IF(DatosClientesPotenciales[[#This Row],[Cierre de \nla previsión]] <>\"\",IF(DatosClientesPotenciales[[#This Row],[Cierre de \nla previsión]] = \"Abril\",DatosClientesPotenciales[Previsión \nponderada],0),\"\"),\"\")","v":{"v":0,"d":"0 €"}},{"$f":"IFERROR(IF(DatosClientesPotenciales[[#This Row],[Cierre de \nla previsión]] <>\"\",IF(DatosClientesPotenciales[[#This Row],[Cierre de \nla previsión]] = \"Mayo\",DatosClientesPotenciales[Previsión \nponderada],0),\"\"),\"\")","v":{"v":0,"d":"0 €"}},{"$f":"IFERROR(IF(DatosClientesPotenciales[[#This Row],[Cierre de \nla previsión]] <>\"\",IF(DatosClientesPotenciales[[#This Row],[Cierre de \nla previsión]] = \"Junio\",DatosClientesPotenciales[Previsión \nponderada],0),\"\"),\"\")","v":{"v":0,"d":"0 €"}},{"$f":"IFERROR(IF(DatosClientesPotenciales[[#This Row],[Cierre de \nla previsión]] <>\"\",IF(DatosClientesPotenciales[[#This Row],[Cierre de \nla previsión]] = \"Julio\",DatosClientesPotenciales[Previsión \nponderada],0),\"\"),\"\")","v":{"v":0,"d":"0 €"}},{"$f":"IFERROR(IF(DatosClientesPotenciales[[#This Row],[Cierre de \nla previsión]] <>\"\",IF(DatosClientesPotenciales[[#This Row],[Cierre de \nla previsión]] = \"Agosto\",DatosClientesPotenciales[Previsión \nponderada],0),\"\"),\"\")","v":{"v":0,"d":"0 €"}},{"$f":"IFERROR(IF(DatosClientesPotenciales[[#This Row],[Cierre de \nla previsión]] <>\"\",IF(DatosClientesPotenciales[[#This Row],[Cierre de \nla previsión]] = \"Septiembre\",DatosClientesPotenciales[Previsión \nponderada],0),\"\"),\"\")","v":{"v":0,"d":"0 €"}},{"$f":"IFERROR(IF(DatosClientesPotenciales[[#This Row],[Cierre de \nla previsión]] <>\"\",IF(DatosClientesPotenciales[[#This Row],[Cierre de \nla previsión]] = \"Octubre\",DatosClientesPotenciales[Previsión \nponderada],0),\"\"),\"\")","v":{"v":0,"d":"0 €"}},{"$f":"IFERROR(IF(DatosClientesPotenciales[[#This Row],[Cierre de \nla previsión]] <>\"\",IF(DatosClientesPotenciales[[#This Row],[Cierre de \nla previsión]] = \"Noviembre\",DatosClientesPotenciales[Previsión \nponderada],0),\"\"),\"\")","v":{"v":0,"d":"0 €"}},{"$f":"IFERROR(IF(DatosClientesPotenciales[[#This Row],[Cierre de \nla previsión]] <>\"\",IF(DatosClientesPotenciales[[#This Row],[Cierre de \nla previsión]] = \"Diciembre\",DatosClientesPotenciales[Previsión \nponderada],0),\"\"),\"\")","v":{"v":0,"d":"0 €"}}]
[null,{"$f":"IFERROR(IF(AND(DatosClientesPotenciales[[#This Row],[Nombre del cliente potencial]] <> \"\", ROW(VentasPrevistas[Nombre del cliente potencial])<>ÚltimaEntrada),DatosClientesPotenciales[Nombre del cliente potencial], \"\"),\"\")","v":""},{"$f":"IFERROR(IF(DatosClientesPotenciales[[#This Row],[Cierre de \nla previsión]] <>\"\",IF(DatosClientesPotenciales[[#This Row],[Cierre de \nla previsión]]= \"Enero\",DatosClientesPotenciales[Previsión \nponderada],0),\"\"),\"\")","v":""},{"$f":"IFERROR(IF(DatosClientesPotenciales[[#This Row],[Cierre de \nla previsión]] <>\"\",IF(DatosClientesPotenciales[[#This Row],[Cierre de \nla previsión]] = \"Febrero\",DatosClientesPotenciales[Previsión \nponderada],0),\"\"),\"\")","v":""},{"$f":"IFERROR(IF(DatosClientesPotenciales[[#This Row],[Cierre de \nla previsión]] <>\"\",IF(DatosClientesPotenciales[[#This Row],[Cierre de \nla previsión]] = \"Marzo\",DatosClientesPotenciales[Previsión \nponderada],0),\"\"),\"\")","v":""},{"$f":"IFERROR(IF(DatosClientesPotenciales[[#This Row],[Cierre de \nla previsión]] <>\"\",IF(DatosClientesPotenciales[[#This Row],[Cierre de \nla previsión]] = \"Abril\",DatosClientesPotenciales[Previsión \nponderada],0),\"\"),\"\")","v":""},{"$f":"IFERROR(IF(DatosClientesPotenciales[[#This Row],[Cierre de \nla previsión]] <>\"\",IF(DatosClientesPotenciales[[#This Row],[Cierre de \nla previsión]] = \"Mayo\",DatosClientesPotenciales[Previsión \nponderada],0),\"\"),\"\")","v":""},{"$f":"IFERROR(IF(DatosClientesPotenciales[[#This Row],[Cierre de \nla previsión]] <>\"\",IF(DatosClientesPotenciales[[#This Row],[Cierre de \nla previsión]] = \"Junio\",DatosClientesPotenciales[Previsión \nponderada],0),\"\"),\"\")","v":""},{"$f":"IFERROR(IF(DatosClientesPotenciales[[#This Row],[Cierre de \nla previsión]] <>\"\",IF(DatosClientesPotenciales[[#This Row],[Cierre de \nla previsión]] = \"Julio\",DatosClientesPotenciales[Previsión \nponderada],0),\"\"),\"\")","v":""},{"$f":"IFERROR(IF(DatosClientesPotenciales[[#This Row],[Cierre de \nla previsión]] <>\"\",IF(DatosClientesPotenciales[[#This Row],[Cierre de \nla previsión]] = \"Agosto\",DatosClientesPotenciales[Previsión \nponderada],0),\"\"),\"\")","v":""},{"$f":"IFERROR(IF(DatosClientesPotenciales[[#This Row],[Cierre de \nla previsión]] <>\"\",IF(DatosClientesPotenciales[[#This Row],[Cierre de \nla previsión]] = \"Septiembre\",DatosClientesPotenciales[Previsión \nponderada],0),\"\"),\"\")","v":""},{"$f":"IFERROR(IF(DatosClientesPotenciales[[#This Row],[Cierre de \nla previsión]] <>\"\",IF(DatosClientesPotenciales[[#This Row],[Cierre de \nla previsión]] = \"Octubre\",DatosClientesPotenciales[Previsión \nponderada],0),\"\"),\"\")","v":""},{"$f":"IFERROR(IF(DatosClientesPotenciales[[#This Row],[Cierre de \nla previsión]] <>\"\",IF(DatosClientesPotenciales[[#This Row],[Cierre de \nla previsión]] = \"Noviembre\",DatosClientesPotenciales[Previsión \nponderada],0),\"\"),\"\")","v":""},{"$f":"IFERROR(IF(DatosClientesPotenciales[[#This Row],[Cierre de \nla previsión]] <>\"\",IF(DatosClientesPotenciales[[#This Row],[Cierre de \nla previsión]] = \"Diciembre\",DatosClientesPotenciales[Previsión \nponderada],0),\"\"),\"\")","v":""}]
[null,{"$f":"IFERROR(IF(AND(DatosClientesPotenciales[[#This Row],[Nombre del cliente potencial]] <> \"\", ROW(VentasPrevistas[Nombre del cliente potencial])<>ÚltimaEntrada),DatosClientesPotenciales[Nombre del cliente potencial], \"\"),\"\")","v":""},{"$f":"IFERROR(IF(DatosClientesPotenciales[[#This Row],[Cierre de \nla previsión]] <>\"\",IF(DatosClientesPotenciales[[#This Row],[Cierre de \nla previsión]]= \"Enero\",DatosClientesPotenciales[Previsión \nponderada],0),\"\"),\"\")","v":""},{"$f":"IFERROR(IF(DatosClientesPotenciales[[#This Row],[Cierre de \nla previsión]] <>\"\",IF(DatosClientesPotenciales[[#This Row],[Cierre de \nla previsión]] = \"Febrero\",DatosClientesPotenciales[Previsión \nponderada],0),\"\"),\"\")","v":""},{"$f":"IFERROR(IF(DatosClientesPotenciales[[#This Row],[Cierre de \nla previsión]] <>\"\",IF(DatosClientesPotenciales[[#This Row],[Cierre de \nla previsión]] = \"Marzo\",DatosClientesPotenciales[Previsión \nponderada],0),\"\"),\"\")","v":""},{"$f":"IFERROR(IF(DatosClientesPotenciales[[#This Row],[Cierre de \nla previsión]] <>\"\",IF(DatosClientesPotenciales[[#This Row],[Cierre de \nla previsión]] = \"Abril\",DatosClientesPotenciales[Previsión \nponderada],0),\"\"),\"\")","v":""},{"$f":"IFERROR(IF(DatosClientesPotenciales[[#This Row],[Cierre de \nla previsión]] <>\"\",IF(DatosClientesPotenciales[[#This Row],[Cierre de \nla previsión]] = \"Mayo\",DatosClientesPotenciales[Previsión \nponderada],0),\"\"),\"\")","v":""},{"$f":"IFERROR(IF(DatosClientesPotenciales[[#This Row],[Cierre de \nla previsión]] <>\"\",IF(DatosClientesPotenciales[[#This Row],[Cierre de \nla previsión]] = \"Junio\",DatosClientesPotenciales[Previsión \nponderada],0),\"\"),\"\")","v":""},{"$f":"IFERROR(IF(DatosClientesPotenciales[[#This Row],[Cierre de \nla previsión]] <>\"\",IF(DatosClientesPotenciales[[#This Row],[Cierre de \nla previsión]] = \"Julio\",DatosClientesPotenciales[Previsión \nponderada],0),\"\"),\"\")","v":""},{"$f":"IFERROR(IF(DatosClientesPotenciales[[#This Row],[Cierre de \nla previsión]] <>\"\",IF(DatosClientesPotenciales[[#This Row],[Cierre de \nla previsión]] = \"Agosto\",DatosClientesPotenciales[Previsión \nponderada],0),\"\"),\"\")","v":""},{"$f":"IFERROR(IF(DatosClientesPotenciales[[#This Row],[Cierre de \nla previsión]] <>\"\",IF(DatosClientesPotenciales[[#This Row],[Cierre de \nla previsión]] = \"Septiembre\",DatosClientesPotenciales[Previsión \nponderada],0),\"\"),\"\")","v":""},{"$f":"IFERROR(IF(DatosClientesPotenciales[[#This Row],[Cierre de \nla previsión]] <>\"\",IF(DatosClientesPotenciales[[#This Row],[Cierre de \nla previsión]] = \"Octubre\",DatosClientesPotenciales[Previsión \nponderada],0),\"\"),\"\")","v":""},{"$f":"IFERROR(IF(DatosClientesPotenciales[[#This Row],[Cierre de \nla previsión]] <>\"\",IF(DatosClientesPotenciales[[#This Row],[Cierre de \nla previsión]] = \"Noviembre\",DatosClientesPotenciales[Previsión \nponderada],0),\"\"),\"\")","v":""},{"$f":"IFERROR(IF(DatosClientesPotenciales[[#This Row],[Cierre de \nla previsión]] <>\"\",IF(DatosClientesPotenciales[[#This Row],[Cierre de \nla previsión]] = \"Diciembre\",DatosClientesPotenciales[Previsión \nponderada],0),\"\"),\"\")","v":""}]
[null,{"$f":"IFERROR(IF(AND(DatosClientesPotenciales[[#This Row],[Nombre del cliente potencial]] <> \"\", ROW(VentasPrevistas[Nombre del cliente potencial])<>ÚltimaEntrada),DatosClientesPotenciales[Nombre del cliente potencial], \"\"),\"\")","v":""},{"$f":"IFERROR(IF(DatosClientesPotenciales[[#This Row],[Cierre de \nla previsión]] <>\"\",IF(DatosClientesPotenciales[[#This Row],[Cierre de \nla previsión]]= \"Enero\",DatosClientesPotenciales[Previsión \nponderada],0),\"\"),\"\")","v":""},{"$f":"IFERROR(IF(DatosClientesPotenciales[[#This Row],[Cierre de \nla previsión]] <>\"\",IF(DatosClientesPotenciales[[#This Row],[Cierre de \nla previsión]] = \"Febrero\",DatosClientesPotenciales[Previsión \nponderada],0),\"\"),\"\")","v":""},{"$f":"IFERROR(IF(DatosClientesPotenciales[[#This Row],[Cierre de \nla previsión]] <>\"\",IF(DatosClientesPotenciales[[#This Row],[Cierre de \nla previsión]] = \"Marzo\",DatosClientesPotenciales[Previsión \nponderada],0),\"\"),\"\")","v":""},{"$f":"IFERROR(IF(DatosClientesPotenciales[[#This Row],[Cierre de \nla previsión]] <>\"\",IF(DatosClientesPotenciales[[#This Row],[Cierre de \nla previsión]] = \"Abril\",DatosClientesPotenciales[Previsión \nponderada],0),\"\"),\"\")","v":""},{"$f":"IFERROR(IF(DatosClientesPotenciales[[#This Row],[Cierre de \nla previsión]] <>\"\",IF(DatosClientesPotenciales[[#This Row],[Cierre de \nla previsión]] = \"Mayo\",DatosClientesPotenciales[Previsión \nponderada],0),\"\"),\"\")","v":""},{"$f":"IFERROR(IF(DatosClientesPotenciales[[#This Row],[Cierre de \nla previsión]] <>\"\",IF(DatosClientesPotenciales[[#This Row],[Cierre de \nla previsión]] = \"Junio\",DatosClientesPotenciales[Previsión \nponderada],0),\"\"),\"\")","v":""},{"$f":"IFERROR(IF(DatosClientesPotenciales[[#This Row],[Cierre de \nla previsión]] <>\"\",IF(DatosClientesPotenciales[[#This Row],[Cierre de \nla previsión]] = \"Julio\",DatosClientesPotenciales[Previsión \nponderada],0),\"\"),\"\")","v":""},{"$f":"IFERROR(IF(DatosClientesPotenciales[[#This Row],[Cierre de \nla previsión]] <>\"\",IF(DatosClientesPotenciales[[#This Row],[Cierre de \nla previsión]] = \"Agosto\",DatosClientesPotenciales[Previsión \nponderada],0),\"\"),\"\")","v":""},{"$f":"IFERROR(IF(DatosClientesPotenciales[[#This Row],[Cierre de \nla previsión]] <>\"\",IF(DatosClientesPotenciales[[#This Row],[Cierre de \nla previsión]] = \"Septiembre\",DatosClientesPotenciales[Previsión \nponderada],0),\"\"),\"\")","v":""},{"$f":"IFERROR(IF(DatosClientesPotenciales[[#This Row],[Cierre de \nla previsión]] <>\"\",IF(DatosClientesPotenciales[[#This Row],[Cierre de \nla previsión]] = \"Octubre\",DatosClientesPotenciales[Previsión \nponderada],0),\"\"),\"\")","v":""},{"$f":"IFERROR(IF(DatosClientesPotenciales[[#This Row],[Cierre de \nla previsión]] <>\"\",IF(DatosClientesPotenciales[[#This Row],[Cierre de \nla previsión]] = \"Noviembre\",DatosClientesPotenciales[Previsión \nponderada],0),\"\"),\"\")","v":""},{"$f":"IFERROR(IF(DatosClientesPotenciales[[#This Row],[Cierre de \nla previsión]] <>\"\",IF(DatosClientesPotenciales[[#This Row],[Cierre de \nla previsión]] = \"Diciembre\",DatosClientesPotenciales[Previsión \nponderada],0),\"\"),\"\")","v":""}]
[null,{"$f":"IFERROR(IF(AND(DatosClientesPotenciales[[#This Row],[Nombre del cliente potencial]] <> \"\", ROW(VentasPrevistas[Nombre del cliente potencial])<>ÚltimaEntrada),DatosClientesPotenciales[Nombre del cliente potencial], \"\"),\"\")","v":""},{"$f":"IFERROR(IF(DatosClientesPotenciales[[#This Row],[Cierre de \nla previsión]] <>\"\",IF(DatosClientesPotenciales[[#This Row],[Cierre de \nla previsión]]= \"Enero\",DatosClientesPotenciales[Previsión \nponderada],0),\"\"),\"\")","v":""},{"$f":"IFERROR(IF(DatosClientesPotenciales[[#This Row],[Cierre de \nla previsión]] <>\"\",IF(DatosClientesPotenciales[[#This Row],[Cierre de \nla previsión]] = \"Febrero\",DatosClientesPotenciales[Previsión \nponderada],0),\"\"),\"\")","v":""},{"$f":"IFERROR(IF(DatosClientesPotenciales[[#This Row],[Cierre de \nla previsión]] <>\"\",IF(DatosClientesPotenciales[[#This Row],[Cierre de \nla previsión]] = \"Marzo\",DatosClientesPotenciales[Previsión \nponderada],0),\"\"),\"\")","v":""},{"$f":"IFERROR(IF(DatosClientesPotenciales[[#This Row],[Cierre de \nla previsión]] <>\"\",IF(DatosClientesPotenciales[[#This Row],[Cierre de \nla previsión]] = \"Abril\",DatosClientesPotenciales[Previsión \nponderada],0),\"\"),\"\")","v":""},{"$f":"IFERROR(IF(DatosClientesPotenciales[[#This Row],[Cierre de \nla previsión]] <>\"\",IF(DatosClientesPotenciales[[#This Row],[Cierre de \nla previsión]] = \"Mayo\",DatosClientesPotenciales[Previsión \nponderada],0),\"\"),\"\")","v":""},{"$f":"IFERROR(IF(DatosClientesPotenciales[[#This Row],[Cierre de \nla previsión]] <>\"\",IF(DatosClientesPotenciales[[#This Row],[Cierre de \nla previsión]] = \"Junio\",DatosClientesPotenciales[Previsión \nponderada],0),\"\"),\"\")","v":""},{"$f":"IFERROR(IF(DatosClientesPotenciales[[#This Row],[Cierre de \nla previsión]] <>\"\",IF(DatosClientesPotenciales[[#This Row],[Cierre de \nla previsión]] = \"Julio\",DatosClientesPotenciales[Previsión \nponderada],0),\"\"),\"\")","v":""},{"$f":"IFERROR(IF(DatosClientesPotenciales[[#This Row],[Cierre de \nla previsión]] <>\"\",IF(DatosClientesPotenciales[[#This Row],[Cierre de \nla previsión]] = \"Agosto\",DatosClientesPotenciales[Previsión \nponderada],0),\"\"),\"\")","v":""},{"$f":"IFERROR(IF(DatosClientesPotenciales[[#This Row],[Cierre de \nla previsión]] <>\"\",IF(DatosClientesPotenciales[[#This Row],[Cierre de \nla previsión]] = \"Septiembre\",DatosClientesPotenciales[Previsión \nponderada],0),\"\"),\"\")","v":""},{"$f":"IFERROR(IF(DatosClientesPotenciales[[#This Row],[Cierre de \nla previsión]] <>\"\",IF(DatosClientesPotenciales[[#This Row],[Cierre de \nla previsión]] = \"Octubre\",DatosClientesPotenciales[Previsión \nponderada],0),\"\"),\"\")","v":""},{"$f":"IFERROR(IF(DatosClientesPotenciales[[#This Row],[Cierre de \nla previsión]] <>\"\",IF(DatosClientesPotenciales[[#This Row],[Cierre de \nla previsión]] = \"Noviembre\",DatosClientesPotenciales[Previsión \nponderada],0),\"\"),\"\")","v":""},{"$f":"IFERROR(IF(DatosClientesPotenciales[[#This Row],[Cierre de \nla previsión]] <>\"\",IF(DatosClientesPotenciales[[#This Row],[Cierre de \nla previsión]] = \"Diciembre\",DatosClientesPotenciales[Previsión \nponderada],0),\"\"),\"\")","v":""}]
[null,"Total",{"$f":"SUBTOTAL(109,VentasPrevistas[Enero \nPrevisión])","v":{"v":270000,"d":"270,000 €"}},{"$f":"SUBTOTAL(109,VentasPrevistas[Febrero \nPrevisión])","v":{"v":20000,"d":"20,000 €"}},{"$f":"SUBTOTAL(109,VentasPrevistas[Marzo \nPrevisión])","v":{"v":20000,"d":"20,000 €"}},{"$f":"SUBTOTAL(109,VentasPrevistas[Abril \nPrevisión])","v":{"v":0,"d":"0 €"}},{"$f":"SUBTOTAL(109,VentasPrevistas[Mayo \nPrevisión])","v":{"v":0,"d":"0 €"}},{"$f":"SUBTOTAL(109,VentasPrevistas[Junio \nPrevisión])","v":{"v":0,"d":"0 €"}},{"$f":"SUBTOTAL(109,VentasPrevistas[Julio Previsión])","v":{"v":0,"d":"0 €"}},{"$f":"SUBTOTAL(109,VentasPrevistas[Agosto \nPrevisión])","v":{"v":0,"d":"0 €"}},{"$f":"SUBTOTAL(109,VentasPrevistas[Septiembre \nPrevisión])","v":{"v":0,"d":"0 €"}},{"$f":"SUBTOTAL(109,VentasPrevistas[Octubre \nPrevisión])","v":{"v":0,"d":"0 €"}},{"$f":"SUBTOTAL(109,VentasPrevistas[Noviembre \nPrevisión])","v":{"v":0,"d":"0 €"}},{"$f":"SUBTOTAL(109,VentasPrevistas[Diciembre \nPrevisión])","v":{"v":0,"d":"0 €"}}]
[null,"Total acumulado",{"$f":"C14","v":{"v":270000,"d":"270,000 €"}},{"$f":"C15+D14","v":{"v":290000,"d":"290,000 €"}},{"$f":"D15+E14","v":{"v":310000,"d":"310,000 €"}},{"$f":"E15+F14","v":{"v":310000,"d":"310,000 €"}},{"$f":"F15+G14","v":{"v":310000,"d":"310,000 €"}},{"$f":"G15+H14","v":{"v":310000,"d":"310,000 €"}},{"$f":"H15+I14","v":{"v":310000,"d":"310,000 €"}},{"$f":"I15+J14","v":{"v":310000,"d":"310,000 €"}},{"$f":"J15+K14","v":{"v":310000,"d":"310,000 €"}},{"$f":"K15+L14","v":{"v":310000,"d":"310,000 €"}},{"$f":"L15+M14","v":{"v":310000,"d":"310,000 €"}},{"$f":"M15+N14","v":{"v":310000,"d":"310,000 €"}}]

{"sheet":"Previsión ponderada mensual","index":2,"n_rows":3,"n_cols":2,"rows_kept":3,"merged":[[0,5,0,9]]}
[]
[]
[null,"Previsión ponderada mensual"]